bitfinex-derivatives/quotes_SOLF0:USTF0_20250318
["timestamp","ask_amount","ask_price","bid_price","bid_amount"]
[1742340561003,11.2193312,125.36,125.32,200.0]
[1742340561299,7.9802,125.34,125.32,200.0]
[1742340562200,8.03739568,125.34,125.32,200.0537932]
[1742340563399,0.05719568,125.34,125.32,208.0346932]
[1742340563699,0.05719568,125.34,125.32,200.0537932]
[1742340564005,8.03699568,125.34,125.32,200.0537932]
[1742340564686,7.9803,125.33,125.32,200.0537932]
[1742340564887,0.05719568,125.34,125.32,200.0537932]
[1742340565501,8.03719568,125.34,125.32,200.0537932]
[1742340566001,8.03719568,125.34,125.32,208.0345932]
[1742340566201,8.03719568,125.34,125.32,200.0537932]
[1742340566500,0.05719568,125.34,125.32,200.0537932]
[1742340567098,8.03719568,125.34,125.32,200.0537932]
[1742340569202,0.05719568,125.34,125.32,208.0345932]
[1742340569389,0.05719568,125.34,125.32,211.2731244]
[1742340569794,0.05719568,125.34,125.33,7.9803]
[1742340573501,0.05719568,125.34,125.33,38.0603]
[1742340574596,0.05719568,125.34,125.33,30.08]
[1742340574795,0.05719568,125.34,125.32,219.2537244]
[1742340575000,0.05719568,125.34,125.32,200.0537932]
[1742340575900,7.9803,125.33,125.32,200.0537932]
[1742340576098,0.05719568,125.34,125.32,200.0537932]
[1742340576595,8.03719568,125.34,125.32,200.0537932]
[1742340577814,8.03719568,125.34,125.32,208.0346932]
[1742340578599,8.03719568,125.34,125.32,200.0537932]
[1742340579308,8.03719568,125.34,125.32,208.0345932]
[1742340580011,8.03719568,125.34,125.32,200.0537932]
[1742340581004,8.03719568,125.34,125.32,208.0346932]
[1742340581202,0.05719568,125.34,125.32,211.2731244]
[1742340582397,0.05719568,125.34,125.33,7.9803]
[1742340584205,0.05719568,125.34,125.32,219.2539244]
[1742340584405,0.05719568,125.34,125.32,208.0345932]
[1742340585912,0.05719568,125.34,125.32,219.2539244]
[1742340586411,0.05719568,125.34,125.33,7.9803]
[1742340603321,31.7361,125.4,125.37,7.9774]
[1742340603529,31.7361,125.4,125.36,11.2193312]
[1742340603824,7.9775,125.38,125.36,11.2193312]
[1742340604215,7.9775,125.38,125.35,7.9787]
[1742340604419,7.9778,125.37,125.35,7.9787]
[1742340604625,7.9778,125.37,125.35,0.06029078]
[1742340605128,8.02901887,125.38,125.35,8.03919078]
[1742340605321,8.02901887,125.38,125.35,0.06029078]
[1742340605729,8.02901887,125.38,125.35,11.27962198]
[1742340606024,0.05161887,125.38,125.36,7.9781]
[1742340607027,8.02881887,125.38,125.35,19.25832198]
[1742340607325,0.05161887,125.38,125.35,19.25832198]
[1742340607528,8.02901887,125.38,125.35,19.25832198]
[1742340607824,8.02901887,125.38,125.36,7.9784]
[1742340608029,8.02901887,125.38,125.35,11.27962198]
[1742340608230,7.9784,125.36,125.35,0.06029078]
[1742340609432,29.96,125.37,125.35,0.06029078]
[1742340609619,0.05161887,125.38,125.35,0.06029078]
[1742340609923,0.05161887,125.38,125.36,7.9781]
[1742340611117,8.02881887,125.38,125.36,7.9781]
[1742340611317,8.02881887,125.38,125.35,0.06029078]
[1742340612017,0.05161887,125.38,125.35,0.06029078]
[1742340612728,7.9781,125.37,125.35,0.06029078]
[1742340613123,7.9781,125.37,125.35,200.06029078]
[1742340613329,8.02911887,125.38,125.35,200.06029078]
[1742340613629,0.05161887,125.38,125.35,200.06029078]
[1742340614225,7.9784,125.36,125.35,200.06029078]
[1742340616426,7.9784,125.36,125.35,196.76089078]
[1742340616626,37.9984,125.36,125.35,196.76089078]
[1742340617731,49.2177312,125.36,125.35,90.80654358]
[1742340618028,7.979,125.35,125.34,0.05960874]
[1742340618336,43.3777312,125.36,125.28,271.2032]
[1742340618537,11.2193312,125.33,125.28,271.2032]
[1742340618836,49.3202312,125.33,125.28,263.22]
[1742340619435,0.05558622,125.32,125.29,8.03737072]
[1742340619738,8.03658622,125.32,125.29,0.05457072]
[1742340620130,0.05558622,125.32,125.29,8.03727072]
[1742340621237,0.05558622,125.32,125.3,7.9821]
[1742340621939,0.05558622,125.32,125.3,11.2193312]
[1742340622238,0.05558622,125.32,125.3,19.2013312]
[1742340622634,0.05558622,125.32,125.3,11.2193312]
[1742340623128,0.05558622,125.32,125.3,19.2012312]
[1742340624841,8.03668622,125.32,125.3,11.2193312]
[1742340625740,0.05558622,125.32,125.3,19.2015312]
[1742340625941,0.05558622,125.32,125.3,11.2193312]
[1742340626844,8.03688622,125.32,125.3,11.2193312]
[1742340629344,0.05558622,125.32,125.29,8.03717072]
[1742340629645,8.03688622,125.32,125.29,8.03717072]
[1742340630447,0.05558622,125.32,125.3,11.2193312]
[1742340631034,0.05558622,125.32,125.31,7.9816]
[1742340631248,30.24,125.37,125.3,41.4593312]
[1742340631437,30.3,125.37,125.33,11.2193312]
[1742340631842,7.9789,125.36,125.33,19.1993312]
[1742340632244,7.9789,125.36,125.33,11.2193312]
[1742340632447,0.05349471,125.36,125.34,7.9793]
[1742340633643,0.05349471,125.36,125.35,19.1983312]
[1742340634047,0.05349471,125.36,125.35,11.2193312]
[1742340634349,0.05349471,125.36,125.33,11.27041035]
[1742340634746,7.9792,125.35,125.33,11.27041035]
[1742340634942,0.05349471,125.36,125.33,11.27041035]
[1742340635949,0.05349471,125.36,125.34,7.9794]
[1742340636347,0.05349471,125.36,125.33,0.05107915]
[1742340636552,8.03229471,125.36,125.33,8.03137915]
[1742340637353,8.03229471,125.36,125.34,7.9796]
[1742340637554,8.03229471,125.36,125.33,0.05107915]
[1742340637855,8.03229471,125.36,125.33,8.03107915]
[1742340638352,7.9792,125.35,125.33,8.03107915]
[1742340638554,0.05349471,125.36,125.33,8.03107915]
[1742340638747,0.05349471,125.36,125.33,0.05107915]
[1742340638957,7.9797,125.34,125.33,0.05107915]
[1742340639252,38.3797,125.34,125.33,0.05107915]
[1742340644959,30.47349471,125.36,125.33,0.05107915]
[1742340645463,38.45219471,125.36,125.34,11.2193312]
[1742340646067,7.979,125.35,125.33,0.05107915]
[1742340647867,7.9797,125.34,125.33,0.05107915]
[1742340648865,19.1990312,125.34,125.33,0.05107915]
[1742340649254,19.1990312,125.34,125.33,7.915e-05]
[1742340652263,7.9816,125.31,125.3,12.61]
[1742340652466,49.5809312,125.31,125.3,12.61]
[1742340652762,7.9822,125.3,125.29,2.06]
[1742340652962,11.2193312,125.3,125.25,2.1616]
[1742340653270,11.2193312,125.29,125.24,276.5310312]
[1742340653459,7.9848,125.27,125.26,0.05548839]
[1742340653858,38.3638,125.28,125.26,0.05548839]
[1742340654058,30.38,125.28,125.26,0.05548839]
[1742340654259,30.38,125.28,125.26,11.27481959]
[1742340654460,0.05644905,125.29,125.27,7.9841]
[1742340654772,0.05644905,125.29,125.28,11.2193312]
[1742340655671,0.05644905,125.29,125.28,19.2028312]
[1742340655874,0.05644905,125.29,125.28,11.2193312]
[1742340657071,0.05644905,125.29,125.27,7.9838]
[1742340657876,0.05644905,125.29,125.28,7.9835]
[1742340661670,7.9792,125.35,125.3,7.9819]
[1742340661864,30.32,125.34,125.3,7.9819]
[1742340662064,30.32,125.34,125.31,7.9813]
[1742340662265,7.9787,125.36,125.31,7.9813]
[1742340662472,30.32,125.34,125.31,7.9813]
[1742340662872,30.37421589,125.34,125.32,7.9808]
[1742340663074,30.37421589,125.34,125.31,0.05170961]
[1742340663274,0.05421589,125.34,125.32,7.9806]
[1742340664473,0.05421589,125.34,125.33,7.9803]
[1742340665577,0.27526226,125.38,125.33,17.51317196]
[1742340665773,30.57526226,125.38,125.33,17.51317196]
[1742340665984,30.57526226,125.38,125.35,7.979]
[1742340666382,30.57526226,125.38,125.33,17.51317196]
[1742340666785,0.05046502,125.37,125.34,0.05055837]
[1742340667286,0.05046502,125.37,125.35,7.979]
[1742340668083,0.05046502,125.37,125.36,7.9784]
[1742340668479,0.05046502,125.37,125.35,7.9785]
[1742340668888,0.05046502,125.37,125.34,0.05055837]
[1742340669689,30.22,125.36,125.34,0.05055837]
[1742340671588,7.979,125.35,125.34,0.05055837]
[1742340673791,25.49217196,125.35,125.34,0.05055837]
[1742340673993,7.9803,125.33,125.32,12.59]
[1742340674193,38.2203,125.33,125.32,12.59]
[1742340674389,30.24,125.33,125.31,9.6]
[1742340674587,7.981,125.32,125.31,9.6]
[1742340675285,38.28067385,125.33,125.31,9.6]
[1742340675687,7.981,125.32,125.31,9.6]
[1742340677991,7.9816,125.31,125.3,0.06011933]
[1742340678797,7.9829,125.29,125.28,19.25]
[1742340678990,38.1829,125.29,125.28,19.25]
[1742340679183,7.9839,125.28,125.24,34.2256]
[1742340679996,0.06140066,125.27,125.25,0.05964009]
[1742340680193,30.16,125.26,125.25,8.04504009]
[1742340680892,30.16,125.26,125.25,0.05964009]
[1742340683401,30.16,125.26,125.25,8.04504009]
[1742340687998,30.16,125.26,125.25,0.05964009]
[1742340688591,38.1448,125.26,125.25,0.05964009]
[1742340689196,49.35979944,125.26,125.25,0.05964009]
[1742340691104,38.1448,125.26,125.25,0.05964009]
[1742340697610,38.1448,125.26,125.25,4.009e-05]
[1742340697804,55.6709878,125.26,125.22,38.27]
[1742340698006,17.5309878,125.24,125.22,38.27]
[1742340698208,38.1467,125.23,125.22,38.27]
[1742340698611,30.16,125.23,125.15,17.5309878]
[1742340698909,8.04010651,125.21,125.18,8.04467923]
[1742340699112,30.14,125.2,125.18,0.05507923]
[1742340700007,30.14,125.2,125.19,7.9892]
[1742340701008,0.05180651,125.21,125.18,17.58606703]
[1742340701210,30.1,125.24,125.18,17.58606703]
[1742340701516,30.1,125.24,125.22,7.987]
[1742340701916,2.1043,125.31,125.21,21.07]
[1742340701917,17.5309878,125.3,125.21,21.07]
[1742340702114,30.12,125.28,125.21,41.07]
[1742340702317,7.9848,125.26,125.21,43.2419]
[1742340702517,30.12,125.25,125.23,0.05819348]
[1742340702921,38.1055,125.25,125.23,0.05819348]
[1742340703218,30.12,125.25,125.23,0.05819348]
[1742340703813,7.9861,125.24,125.23,0.05819348]
[1742340704214,30.12,125.25,125.23,0.05819348]
[1742340705018,7.9861,125.24,125.23,0.05819348]
[1742340708721,0.05529606,125.26,125.24,7.9859]
[1742340708918,0.05529606,125.26,125.23,0.05819348]
[1742340709116,0.05529606,125.26,125.23,4.23669348]
[1742340709311,0.05529606,125.26,125.25,7.9854]
[1742340710520,0.05529606,125.26,125.23,4.23669348]
[1742340710720,30.03529606,125.26,125.23,4.23669348]
[1742340711024,30.03529606,125.26,125.23,12.22299348]
[1742340711418,30.03529606,125.26,125.23,4.23669348]
[1742340712523,30.03529606,125.26,125.25,7.9854]
[1742340713621,30.03529606,125.26,125.24,7.9858]
[1742340716233,30.03529606,125.26,125.23,2.12669348]
[1742340717129,30.03529606,125.26,125.23,10.11339348]
[1742340717334,30.03529606,125.26,125.23,0.05819348]
[1742340718036,30.03529606,125.26,125.24,7.9859]
[1742340719836,30.03529606,125.26,125.24,17.5959]
[1742340720639,30.03529606,125.26,125.25,7.9854]
[1742340721439,0.05529606,125.26,125.25,7.9854]
[1742340724834,0.05529606,125.26,125.24,20.2058]
[1742340725435,0.05529606,125.26,125.25,7.9854]
[1742340728945,0.05529606,125.26,125.25,19.20209664]
[1742340729645,7.9822,125.31,125.29,7.9828]
[1742340729846,29.74,125.3,125.27,11.21669664]
[1742340730043,40.95669664,125.3,125.25,11.21669664]
[1742340730546,7.9833,125.29,125.26,7.9845]
[1742340730746,8.03448071,125.29,125.26,8.04006052]
[1742340731951,8.03448071,125.29,125.26,0.05556052]
[1742340732843,0.05118071,125.29,125.26,0.05556052]
[1742340733042,11.21669664,125.28,125.26,0.05556052]
[1742340733350,29.68,125.27,125.26,0.05556052]
[1742340733746,37.6641,125.27,125.26,0.05556052]
[1742340734148,29.68,125.27,125.26,0.05556052]
[1742340734848,29.68,125.27,125.26,8.04036052]
[1742340736945,8.03438071,125.29,125.26,8.04036052]
[1742340736946,29.64,125.28,125.26,8.04036052]
[1742340737350,37.6236,125.28,125.26,8.04036052]
[1742340738453,29.64,125.28,125.26,8.04036052]
[1742340739251,37.6236,125.28,125.26,8.04036052]
[1742340739649,29.64,125.28,125.26,8.04036052]
[1742340740756,37.6236,125.28,125.26,8.04036052]
[1742340741156,37.6236,125.28,125.26,0.05556052]
[1742340741856,7.9841,125.27,125.26,0.05556052]
[1742340742358,29.64,125.28,125.26,0.05556052]
[1742340742657,37.624,125.28,125.26,8.04026052]
[1742340743052,37.624,125.28,125.26,0.05556052]
[1742340743858,37.624,125.28,125.26,2.66556052]
[1742340744254,7.9841,125.27,125.26,2.66556052]
[1742340744864,37.6238,125.28,125.26,2.66556052]
[1742340745459,29.64,125.28,125.26,10.64986052]
[1742340747162,29.64,125.28,125.26,2.66556052]
[1742340747362,8.03428071,125.29,125.26,2.66556052]
[1742340747555,29.52,125.28,125.26,2.66556052]
[1742340748357,0.05118071,125.29,125.27,19.20049664]
[1742340749557,0.05118071,125.29,125.27,11.21669664]
[1742340749755,0.05118071,125.29,125.26,25.60556052]
[1742340750362,7.9841,125.28,125.26,25.60556052]
[1742340751263,0.05118071,125.29,125.26,25.60556052]
[1742340752663,19.20079664,125.27,125.26,25.60556052]
[1742340752865,48.84079664,125.27,125.26,25.60556052]
[1742340753254,48.84079664,125.27,125.26,25.55]
[1742340753453,48.84079664,125.27,125.26,11.90766052]
[1742340753658,40.85669664,125.27,125.2,274.67669664]
[1742340753860,11.21669664,125.24,125.2,274.67669664]
[1742340754164,29.64,125.23,125.2,274.67669664]
[1742340754465,29.64,125.23,125.2,274.72897521]
[1742340754661,29.69987244,125.23,125.2,274.72897521]
[1742340754861,29.69987244,125.23,125.21,11.46]
[1742340756471,37.68677244,125.23,125.21,11.46]
[1742340756860,40.91656908,125.23,125.21,11.46]
[1742340757062,7.9873,125.22,125.21,11.46]
[1742340757965,19.20399664,125.22,125.21,11.46]
[1742340758459,7.988,125.21,125.2,0.05227857]
[1742340758660,19.20469664,125.21,125.2,0.05227857]
[1742340759071,7.988,125.21,125.2,0.05227857]
[1742340762768,7.988,125.21,125.2,7.857e-05]
[1742340762966,7.9886,125.2,125.19,17.88]
[1742340763270,55.057216,125.2,125.19,17.88]
[1742340763568,47.068616,125.2,125.15,17.17]
[1742340764071,7.9909,125.17,125.16,0.06121166]
[1742340764369,37.5709,125.17,125.16,0.06121166]
[1742340766474,37.5709,125.17,125.16,1.166e-05]
[1742340770668,29.56,125.17,125.16,1.166e-05]
[1742340772573,37.5505,125.17,125.16,1.166e-05]
[1742340773575,29.56,125.17,125.16,1.166e-05]
[1742340774172,37.5505,125.17,125.16,1.166e-05]
[1742340784187,7.9936,125.13,125.11,20.72]
[1742340784483,29.5,125.13,125.12,7.9937]
[1742340784682,29.5,125.15,125.11,11.2337836]
[1742340784883,7.991,125.17,125.11,11.2337836]
[1742340785181,29.5,125.16,125.14,7.9921]
[1742340785385,0.05908285,125.15,125.14,7.9921]
[1742340785786,29.5,125.16,125.14,7.9921]
[1742340785985,29.5,125.16,125.15,7.9918]
[1742340786684,29.5,125.16,125.14,2.0624]
[1742340786685,29.5,125.16,125.14,10.0546]
[1742340786986,40.78748988,125.16,125.14,2.0624]
[1742340787283,29.55370628,125.16,125.14,10.0547]
[1742340789480,29.55370628,125.16,125.14,2.0624]
[1742340789680,7.9918,125.15,125.14,2.0624]
[1742340791882,7.9918,125.15,125.14,2.0624]
[1742340792587,7.9924,125.14,125.13,0.05461376]
[1742340792780,40.78748988,125.16,125.14,792.0076]
[1742340793988,7.9918,125.15,125.14,792.0076]
[1742340796889,19.2255836,125.15,125.14,792.0076]
[1742340799889,29.46,125.15,125.14,792.0076]
[1742340804201,0.05370628,125.16,125.14,792.0076]
[1742340804497,26.2201,125.16,125.14,803.2413836]
[1742340805197,7.9902,125.18,125.15,7.9918]
[1742340805398,29.54,125.17,125.15,7.9918]
[1742340805994,29.64004049,125.18,125.16,7.9909]
[1742340806389,29.64004049,125.18,125.16,8.04485973]
[1742340806885,29.56,125.18,125.17,7.9905]
[1742340807090,26.2598,125.18,125.17,7.9905]
[1742340807292,370.2337836,125.21,125.16,0.05395973]
[1742340807591,11.2337836,125.21,125.17,11.2337836]
[1742340807892,11.2337836,125.23,125.17,11.2337836]
[1742340808097,0.05747053,125.2,125.19,11.2337836]
[1742340808293,0.05747053,125.2,125.19,19.2225836]
[1742340808487,29.58,125.21,125.19,11.28550744]
[1742340808693,19.73499605,125.21,125.19,11.28550744]
[1742340808893,0.05709605,125.21,125.2,7.9886]
[1742340809688,84.99067841,125.25,125.2,7.9886]
[1742340809895,7.9865,125.24,125.21,11.2337836]
[1742340810496,7.9867,125.23,125.21,11.2337836]
[1742340810801,8.04065933,125.23,125.21,11.29173313]
[1742340811403,19.2210836,125.22,125.21,0.05794953]
[1742340811600,48.8210836,125.22,125.21,0.05794953]
[1742340812204,29.6,125.22,125.21,0.05794953]
[1742340813302,37.5873,125.22,125.21,0.05794953]
[1742340820609,0.05395933,125.23,125.21,0.05794953]
[1742340821204,0.05395933,125.23,125.21,8.04554953]
[1742340822003,0.05395933,125.23,125.22,19.2210836]
[1742340822212,29.66,125.27,125.22,11.2337836]
[1742340822417,7.9848,125.26,125.23,7.9861]
[1742340823417,0.05265672,125.26,125.24,11.2337836]
[1742340823714,0.05265672,125.26,125.25,7.9851]
[1742340824107,0.05265672,125.26,125.24,11.2337836]
[1742340824306,0.05265672,125.26,125.24,7.9858]
[1742340824508,0.05265672,125.26,125.23,15.46973465]
[1742340825011,11.28644032,125.26,125.23,0.05995105]
[1742340825415,29.64,125.25,125.23,0.05995105]
[1742340826014,7.9861,125.24,125.23,0.05995105]
[1742340827216,19.2198836,125.24,125.23,0.05995105]
[1742340829206,7.9861,125.24,125.23,0.05995105]
[1742340830803,15.9785,125.24,125.23,0.05995105]
[1742340838822,7.9924,125.24,125.23,0.05995105]
[1742340839424,15.9785,125.24,125.23,0.05995105]
[1742340845230,7.9924,125.24,125.23,0.05995105]
[1742340846019,15.9785,125.24,125.23,0.05995105]
[1742340846219,45.4585,125.24,125.23,0.05995105]
[1742340846727,37.4724,125.24,125.23,0.05995105]
[1742340847627,7.9924,125.24,125.23,0.05995105]
[1742340849529,7.9924,125.24,125.23,800.05995105]
[1742340850433,7.9924,125.24,125.23,808.04665105]
[1742340850927,0.05265672,125.26,125.23,811.27954457]
[1742340851123,0.05265672,125.26,125.25,11.21959352]
[1742340851323,0.05265672,125.26,125.25,19.20499352]
[1742340852628,0.05265672,125.26,125.25,11.21959352]
[1742340853235,0.05265672,125.26,125.23,848.74594457]
[1742340853434,0.05265672,125.26,125.24,19.24]
[1742340854333,0.05265672,125.26,125.24,27.226]
[1742340854530,0.05265672,125.26,125.24,19.24]
[1742340855834,0.05265672,125.26,125.25,7.9854]
[1742340856434,0.05265672,125.26,125.24,27.2259]
[1742340857134,0.05265672,125.26,125.25,7.9854]
[1742340858231,0.05265672,125.26,125.24,27.2258]
[1742340858434,0.05265672,125.26,125.24,19.24]
[1742340858826,48.64499352,125.25,125.24,19.24]
[1742340860827,29.44,125.25,125.24,19.24]
[1742340864439,29.44,125.25,125.24,27.2261]
[1742340864735,0.05265672,125.26,125.24,19.24]
[1742340865135,0.05265672,125.26,125.25,7.9854]
[1742340865838,0.05265672,125.26,125.24,27.2257]
[1742340871040,0.05265672,125.26,125.24,19.24]
[1742340872743,7.9854,125.25,125.24,19.24]
[1742340873234,0.05265672,125.26,125.23,800.05995105]
[1742340873435,7.9861,125.24,125.23,800.05995105]
[1742340874142,7.9858,125.25,125.23,800.05995105]
[1742340875745,0.05265672,125.26,125.23,811.27954457]
[1742340876344,0.05265672,125.26,125.23,817.40924457]
[1742340876545,0.05265672,125.26,125.25,7.9854]
[1742340878748,0.05265672,125.26,125.25,19.20499352]
[1742340880951,0.05265672,125.26,125.24,21.3257]
[1742340881247,0.05265672,125.26,125.24,13.34]
[1742340881442,7.9854,125.25,125.24,13.34]
[1742340882551,37.2654,125.25,125.24,13.34]
[1742340882853,29.28,125.25,125.24,13.34]
[1742340883350,37.2654,125.25,125.24,13.34]
[1742340884348,29.28,125.25,125.24,13.34]
[1742340885858,37.2654,125.25,125.24,13.34]
[1742340887358,48.48499352,125.25,125.24,13.34]
[1742340890469,40.49959352,125.25,125.24,13.34]
[1742340892667,48.48499352,125.25,125.24,13.34]
[1742340899569,7.9861,125.24,125.23,816.07995105]
[1742340902580,48.48529352,125.25,125.23,816.07995105]
[1742340903067,40.49959352,125.25,125.23,816.07995105]
[1742340903272,7.9861,125.24,125.23,835.21995105]
[1742340905578,7.9861,125.24,125.23,823.13055105]
[1742340905982,7.9861,125.24,125.23,807.11055105]
[1742340908078,29.14,125.24,125.23,807.11055105]
[1742340909384,37.1261,125.24,125.23,795.02735105]
[1742340912687,37.1261,125.24,125.23,782.96615105]
[1742340912876,41.271,125.24,125.23,521.1070021]
[1742340913073,41.271,125.24,125.23,476.0409021]
[1742340913682,49.251,125.24,125.23,406.62710854]
[1742340913883,49.251,125.24,125.23,324.37640854]
[1742340914482,49.251,125.24,125.23,321.07720854]
[1742340914685,49.251,125.24,125.23,308.30880854]
[1742340914987,49.251,125.24,125.23,242.98810854]
[1742340915183,49.251,125.24,125.23,229.71030854]
[1742340915375,60.47059352,125.24,125.23,229.71030854]
[1742340915883,60.47059352,125.24,125.22,19.40358776]
[1742340916089,52.48449352,125.24,125.16,7.9912]
[1742340916286,11.21959352,125.19,125.15,10.003]
[1742340916583,40.31959352,125.18,125.14,4.1655]
[1742340916990,40.31959352,125.18,125.15,7.9917]
[1742340917183,0.05735136,125.17,125.15,8.04766927]
[1742340917879,0.05735136,125.17,125.15,0.05596927]
[1742340919088,19.26754488,125.17,125.15,0.05596927]
[1742340919289,11.21959352,125.16,125.15,0.05596927]
[1742340919594,19.21079352,125.16,125.15,0.05596927]
[1742340919979,11.21959352,125.16,125.15,0.05596927]
[1742340920887,11.27694488,125.17,125.15,0.05596927]
[1742340921090,0.05735136,125.17,125.15,0.05596927]
[1742340921389,0.05735136,125.17,125.15,8.04766927]
[1742340921887,0.05735136,125.17,125.16,7.9912]
[1742340925595,29.1,125.18,125.17,7.9905]
[1742340926498,29.1,125.18,125.16,12.118]
[1742340926701,29.16025485,125.18,125.16,12.118]
[1742340927598,29.16025485,125.18,125.16,4.1271]
[1742340930196,29.16025485,125.18,125.16,12.1181]
[1742340930599,29.16025485,125.18,125.16,4.1271]
[1742340932696,29.16025485,125.18,125.16,12.1182]
[1742340933606,29.16025485,125.18,125.16,4.1271]
[1742340936205,29.16025485,125.18,125.16,12.1177]
[1742340936706,29.16025485,125.18,125.16,4.1271]
[1742340936903,29.16025485,125.18,125.17,7.9905]
[1742340937109,29.06025485,125.18,125.17,7.9905]
[1742340937405,29.0,125.19,125.17,17.5508356]
[1742340937608,28.98,125.2,125.17,17.5508356]
[1742340937812,28.98,125.21,125.17,17.5508356]
[1742340938601,28.98,125.21,125.18,0.05249204]
[1742340938809,0.05933529,125.2,125.18,0.05249204]
[1742340939110,0.05933529,125.2,125.18,8.04199204]
[1742340940719,0.05933529,125.2,125.18,0.05249204]
[1742340942012,0.05933529,125.2,125.18,8.04229204]
[1742340942613,0.05933529,125.2,125.19,7.9892]
[1742340942819,28.97933529,125.2,125.19,7.9892]
[1742340943319,28.97933529,125.2,125.19,19.21454138]
[1742340947824,0.05933529,125.2,125.19,19.21454138]
[1742340950221,0.05933529,125.2,125.18,0.05249204]
[1742340950628,11.28467667,125.2,125.18,0.05249204]
[1742340950825,19.27357667,125.2,125.18,0.05249204]
[1742340952731,0.05933529,125.2,125.18,0.05249204]
[1742340953234,8.04803529,125.2,125.18,0.05249204]
[1742340953819,7.9892,125.19,125.18,0.05249204]
[1742340955536,11.28467667,125.2,125.18,0.05249204]
[1742340956327,28.86,125.19,125.18,0.05249204]
[1742340960234,36.8492,125.19,125.18,0.05249204]
[1742340961239,48.07454138,125.19,125.18,0.05249204]
[1742340961943,36.8492,125.19,125.18,0.05249204]
[1742340962943,48.07454138,125.19,125.18,0.05249204]
[1742340963444,50.16134138,125.19,125.18,0.05249204]
[1742340964743,7.9912,125.16,125.15,30.71]
[1742340964940,47.99654138,125.16,125.15,30.71]
[1742340965136,40.00534138,125.16,125.11,23.44024138]
[1742340965330,7.9921,125.15,125.11,23.44024138]
[1742340965535,28.8,125.14,125.11,23.44024138]
[1742340965741,28.8,125.14,125.11,15.44624138]
[1742340965947,28.85701647,125.14,125.11,15.50717459]
[1742340966142,28.85701647,125.14,125.12,7.9937]
[1742340967948,28.85701647,125.14,125.11,23.50127459]
[1742340968538,28.85701647,125.14,125.12,7.9936]
[1742340968735,28.85701647,125.14,125.11,15.50717459]
[1742340968939,36.84971647,125.14,125.11,11.28627459]
[1742340970441,36.84971647,125.14,125.11,0.06093321]
[1742340971955,28.8,125.13,125.11,8.05523321]
[1742340973551,28.8,125.13,125.12,7.9937]
[1742340975055,0.05701647,125.14,125.13,7.9931]
[1742340975245,28.85701647,125.14,125.13,19.21844138]
[1742340976458,0.05701647,125.14,125.13,19.21844138]
[1742340977652,40.08235785,125.14,125.11,0.06093321]
[1742340978251,48.07505785,125.14,125.11,0.06093321]
[1742340979258,40.08235785,125.14,125.11,0.06093321]
[1742340979858,40.08235785,125.14,125.11,8.05523321]
[1742340980054,28.85701647,125.14,125.11,8.05523321]
[1742340980453,28.85701647,125.14,125.12,19.21884138]
[1742340981359,28.85701647,125.14,125.13,7.9931]
[1742340982655,0.05701647,125.14,125.13,7.9931]
[1742340982961,28.85701647,125.14,125.13,19.21844138]
[1742340985556,0.05701647,125.14,125.13,19.21844138]
[1742340994369,0.05701647,125.14,125.13,7.9931]
[1742340994771,0.05701647,125.14,125.12,7.9935]
[1742340994969,28.8,125.13,125.12,7.9935]
[1742340997374,28.8,125.13,125.11,8.05513321]
[1742341001769,36.7931,125.13,125.11,0.06093321]
[1742341001972,11.22534138,125.12,125.11,0.06093321]
[1742341002459,19.21904138,125.12,125.11,0.06093321]
[1742341004878,11.22534138,125.12,125.11,0.06093321]
[1742341008077,11.22534138,125.12,125.11,8.05533321]
[1742341008471,11.22534138,125.12,125.11,0.06093321]
[1742341011280,11.22534138,125.12,125.11,8.05533321]
[1742341012383,11.22534138,125.12,125.11,0.06093321]
[1742341012881,40.02534138,125.12,125.11,0.06093321]
[1742341020499,48.01904138,125.12,125.11,0.06093321]
[1742341021194,40.02534138,125.12,125.11,0.06093321]
[1742341022492,11.22534138,125.12,125.11,0.06093321]
[1742341022795,40.02534138,125.12,125.11,0.06093321]
[1742341022995,40.02534138,125.12,125.1,31.16]
[1742341023700,7.9944,125.11,125.1,31.16]
[1742341027195,2.1626,125.11,125.0,265.8203]
[1742341027396,11.22534138,125.06,125.01,15.44904138]
[1742341027589,28.8,125.05,125.01,15.44904138]
[1742341027995,28.8,125.05,125.03,7.9992]
[1742341028289,40.02534138,125.05,125.01,4.2237]